bitfinex-derivatives/quotes_BNBF0:USTF0_20250715
["timestamp","ask_amount","ask_price","bid_price","bid_amount"]
[1752589893698,1.08696942,684.35,683.74,0.254359]
[1752589893896,1.08696942,684.34,683.74,0.254359]
[1752589894092,1.50967945,684.33,683.74,0.254359]
[1752589894397,1.08696942,684.32,683.74,0.254359]
[1752589894593,1.08696942,684.31,683.74,0.254359]
[1752589894793,1.08696942,684.3,683.74,0.254359]
[1752589894997,1.08696942,684.29,683.74,0.254359]
[1752589895294,1.08696942,684.28,683.74,0.254359]
[1752589895593,1.08696942,684.27,683.74,0.254359]
[1752589895798,1.08696942,684.26,683.74,0.254359]
[1752589895993,1.08696942,684.25,683.74,0.254359]
[1752589896197,1.08696942,684.24,683.74,0.254359]
[1752589896395,1.96068562,684.7,683.74,0.254359]
[1752589896396,0.97954606,684.55,683.75,0.98302904]
[1752589896596,1.08627314,684.54,683.75,0.98302904]
[1752589896803,1.50880011,684.53,683.75,0.98302904]
[1752589896999,1.50880011,684.52,683.75,0.98302904]
[1752589897202,1.08625917,684.51,683.74,0.254359]
[1752589897401,1.50878168,684.5,683.74,0.254359]
[1752589897600,1.50858155,684.49,683.74,0.254359]
[1752589897902,1.50852322,684.48,683.74,0.254359]
[1752589898196,1.50852322,684.48,683.7,0.98302904]
[1752589898197,1.50852322,684.47,683.7,0.98302904]
[1752589898495,1.50852322,684.46,683.71,0.98302904]
[1752589898700,1.50852322,684.45,683.71,0.98302904]
[1752589898897,1.50852322,684.44,683.71,0.98302904]
[1752589899098,1.50852322,684.43,683.72,0.98302904]
[1752589899401,0.97954606,684.37,683.56,0.98302904]
[1752589899601,2.0656051,684.36,683.55,0.98302904]
[1752589899801,2.48730552,684.35,683.56,0.98302904]
[1752589900101,2.48730552,684.34,683.54,0.98302904]
[1752589900299,1.50775946,684.33,683.53,0.98302904]
[1752589900497,1.50775946,684.32,683.53,0.98302904]
[1752589900701,1.50775946,684.31,683.53,0.98302904]
[1752589900902,1.50775946,684.3,683.52,0.98302904]
[1752589901098,1.50775946,684.29,683.52,0.98302904]
[1752589901298,1.50775946,684.28,683.51,0.98302904]
[1752589901497,1.50775946,684.27,683.51,0.98302904]
[1752589901697,1.50775946,684.26,683.45,0.98302904]
[1752589901901,1.50775946,684.25,683.44,0.98302904]
[1752589902198,1.50775946,684.24,683.43,0.98302904]
[1752589902399,1.50775946,684.23,683.37,0.98302904]
[1752589902601,1.50775946,684.22,683.34,0.98302904]
[1752589902799,1.50775946,684.21,683.34,0.98302904]
[1752589903005,1.50775946,684.2,683.35,0.98302904]
[1752589903199,3.26780937,685.39,683.23,0.25450968]
[1752589903200,1.50775946,684.19,683.36,0.98302904]
[1752589903398,1.50775946,684.18,683.35,0.98302904]
[1752589903600,1.50775946,684.17,683.35,0.98302904]
[1752589903903,1.50775946,684.16,683.34,0.98302904]
[1752589904104,1.50775946,684.15,683.34,0.98302904]
[1752589904404,1.50775946,684.14,683.23,0.98302904]
[1752589904607,1.50775946,684.13,683.21,0.98302904]
[1752589904904,1.50775946,684.12,683.18,0.98302904]
[1752589905104,1.50775946,684.11,683.18,0.98302904]
[1752589905305,1.50775946,684.1,683.19,0.98302904]
[1752589905501,1.50775946,684.09,683.17,0.98302904]
[1752589905804,1.50101438,684.08,683.15,0.98302904]
[1752589906006,1.08060375,684.07,683.15,0.98302904]
[1752589906202,1.50096914,684.06,683.17,0.98302904]
[1752589906399,1.50096914,684.05,683.16,0.98302904]
[1752589906601,1.50096914,684.04,683.13,0.98302904]
[1752589906805,1.50096914,684.03,683.1,0.98302904]
[1752589907001,1.50096914,684.02,683.1,0.98302904]
[1752589907305,1.50096914,684.02,682.94,1.31199713]
[1752589907306,1.50096914,684.01,683.08,0.98302904]
[1752589907503,1.50096914,684.0,683.05,0.98302904]
[1752589907707,1.50096914,683.99,683.05,0.98302904]
[1752589908009,1.50096914,683.98,683.05,0.9785492]
[1752589908305,3.26780937,685.32,683.03,0.9785492]
[1752589908306,1.50096914,683.97,683.03,0.9785492]
[1752589908504,1.49967913,683.96,683.01,0.9785492]
[1752589908809,1.49967913,683.95,683.04,0.9785492]
[1752589909007,1.49967913,683.94,683.04,0.9785492]
[1752589909309,1.49967913,683.93,683.03,0.9785492]
[1752589909509,1.49967913,683.93,682.98,0.25460279]
[1752589909510,1.08060375,683.92,682.99,0.9785492]
[1752589909707,1.08060375,683.91,682.98,0.25460279]
[1752589909904,1.08060375,683.9,682.98,0.25460279]
[1752589910107,1.08060375,683.89,682.98,0.25460279]
[1752589910407,1.08060375,683.88,682.98,0.25460279]
[1752589910707,1.08060375,683.87,682.98,0.25460279]
[1752589910906,1.08060375,683.86,682.98,0.25460279]
[1752589911209,0.97463862,684.25,682.98,0.25460279]
[1752589911410,0.97463862,684.24,682.98,0.25460279]
[1752589911611,0.97463862,684.25,682.98,0.25460279]
[1752589912104,0.97463862,684.24,682.98,0.25460279]
[1752589912305,0.97463862,684.26,682.98,0.25460279]
[1752589912505,0.97463862,684.24,682.98,0.25460279]
[1752589913308,0.97463862,684.26,682.98,0.25460279]
[1752589914107,0.97463862,684.24,682.98,0.25460279]
[1752589914309,0.97463862,684.25,682.98,0.25460279]
[1752589914505,0.97463862,684.16,682.98,0.25460279]
[1752589914709,0.97463862,684.18,682.98,0.25460279]
[1752589915107,0.97463862,684.17,682.98,0.25460279]
[1752589915508,0.97463862,684.19,682.98,0.25460279]
[1752589915709,0.97463862,684.18,682.98,0.25460279]
[1752589916009,0.97463862,684.17,682.98,0.25460279]
[1752589916413,0.97463862,684.2,682.98,0.25460279]
[1752589916717,0.97463862,684.07,682.54,0.9785492]
[1752589916909,0.97463862,684.07,682.91,0.25464098]
[1752589917314,0.97463862,684.09,682.91,0.25464098]
[1752589918414,2.47038686,684.11,682.91,0.25464098]
[1752589918614,1.49574824,684.1,682.91,0.25464098]
[1752589918813,0.41849007,684.09,682.5,0.9785492]
[1752589919010,0.41849007,684.09,682.3,1.31199713]
[1752589919011,0.41849007,684.09,682.86,0.25467359]
[1752589919214,0.97463862,683.99,682.86,0.25467359]
[1752589919515,0.97463862,684.01,682.86,0.25467359]
[1752589919814,0.97463862,684.03,682.86,0.25467359]
[1752589920512,0.97463862,683.99,682.35,0.9785492]
[1752589920716,1.07725817,684.04,682.74,0.25471553]
[1752589920717,0.97463862,683.96,682.74,0.25471553]
[1752589920911,0.97463862,683.95,682.74,0.25471553]
[1752589921113,0.97463862,683.96,682.74,0.25471553]
[1752589921317,1.07725817,683.95,682.3,0.9785492]
[1752589921517,1.96068562,684.51,681.3,3.27999283]
[1752589921518,1.49574824,683.94,682.25,0.97204707]
[1752589921714,1.49574824,683.93,682.26,0.97204707]
[1752589921914,1.49574824,683.92,682.26,0.97204707]
[1752589922115,1.49574824,683.91,682.26,0.97204707]
[1752589922313,1.49574824,683.9,681.98,1.31199713]
[1752589922618,1.48814808,683.89,682.58,0.25476122]
[1752589922913,1.48814808,683.88,682.45,0.25478173]
[1752589923119,1.48814808,683.87,682.45,0.25478173]
[1752589923319,1.48814808,683.86,682.45,0.25478173]
[1752589923516,1.48814808,683.85,682.45,0.25478173]
[1752589923820,1.48814808,683.84,682.45,0.25478173]
[1752589924015,1.48814808,683.83,682.45,0.25478173]
[1752589924217,1.48814808,683.82,682.45,0.25478173]
[1752589924417,1.48814808,683.81,682.45,0.25478173]
[1752589924621,1.48814808,683.8,682.45,0.25478173]
[1752589924817,1.48814808,683.79,682.45,0.25478173]
[1752589925021,1.48814808,683.78,682.45,0.25478173]
[1752589925218,1.48762386,683.77,682.45,0.25478173]
[1752589925420,1.07157237,683.76,682.45,0.25478173]
[1752589925624,1.07157237,683.75,682.45,0.25478173]
[1752589925916,1.07157237,683.74,682.45,0.25478173]
[1752589926122,1.07157237,683.73,682.45,0.25478173]
[1752589926421,0.96588368,684.09,682.45,0.25478173]
[1752589926617,0.96588368,684.08,682.45,0.25478173]
[1752589927218,0.96588368,684.09,682.45,0.25478173]
[1752589928222,0.96588368,684.1,682.45,0.25478173]
[1752589928620,0.96588368,684.11,682.45,0.25478173]
[1752589929325,1.48595631,684.14,682.45,0.25478173]
[1752589929620,1.48595631,684.13,682.45,0.25478173]
[1752589929825,0.96404772,684.06,682.45,0.25478173]
[1752589930226,0.96404772,684.07,682.45,0.25478173]
[1752589930526,0.96404772,684.05,682.45,0.25478173]
[1752589930822,0.96404772,684.03,682.45,0.25478173]
[1752589931327,0.96404772,684.01,682.45,0.25478173]
[1752589931525,0.96404772,684.04,682.45,0.25478173]
[1752589931926,0.96404772,683.99,682.45,0.25478173]
[1752589932223,0.96404772,684.0,682.45,0.25478173]
[1752589932522,0.96404772,683.99,682.45,0.25478173]
[1752589932726,2.03423043,684.01,682.45,0.25478173]
[1752589932928,1.07018271,684.0,682.45,0.25478173]
[1752589933128,0.96404772,683.97,682.45,0.25478173]
[1752589933328,1.07018271,683.98,682.45,0.25478173]
[1752589933627,1.07018271,683.97,682.45,0.25478173]
[1752589933823,1.07018271,683.96,682.45,0.25478173]
[1752589934026,1.07018271,683.95,682.45,0.25478173]
[1752589934224,1.07018271,683.94,682.45,0.25478173]
[1752589934429,1.07018271,683.93,682.45,0.25478173]
[1752589934629,1.48639809,683.92,682.45,0.25478173]
[1752589934930,1.07018271,683.91,682.45,0.25478173]
[1752589935127,1.07018271,683.9,682.45,0.25478173]
[1752589935432,1.07018271,683.89,682.45,0.25478173]
[1752589935630,1.07018271,683.88,682.45,0.25478173]
[1752589935830,1.48652522,683.87,682.45,0.25478173]
[1752589936030,1.48652522,683.86,682.45,0.25478173]
[1752589936227,1.48666613,683.85,682.45,0.25478173]
[1752589936528,1.07018271,683.84,682.45,0.25478173]
[1752589936731,1.07018271,683.83,682.45,0.25478173]
[1752589936925,1.07018271,683.82,682.45,0.25478173]
[1752589937130,1.07018271,683.81,682.45,0.25478173]
[1752589937328,1.07018271,683.8,682.45,0.25478173]
[1752589937527,1.07018271,683.79,682.45,0.25478173]
[1752589937728,1.07018271,683.78,682.45,0.25478173]
[1752589937933,1.07018271,683.77,682.45,0.25478173]
[1752589938129,1.07018271,683.76,682.45,0.25478173]
[1752589938330,1.07018271,683.75,682.45,0.25478173]
[1752589938532,1.07018271,683.74,682.45,0.25478173]
[1752589938829,1.07018271,683.73,682.45,0.25478173]
[1752589939028,1.07018271,683.72,682.45,0.25478173]
[1752589939230,1.07018271,683.71,682.45,0.25478173]
[1752589939430,1.07018271,683.7,682.45,0.25478173]
[1752589939631,1.07246725,683.69,682.45,0.25478173]
[1752589939829,1.07246725,683.68,682.45,0.25478173]
[1752589940032,0.96404772,683.74,682.45,0.25478173]
[1752589940232,0.96404772,683.76,682.45,0.25478173]
[1752589940429,0.96404772,683.75,682.45,0.25478173]
[1752589941233,0.96404772,683.76,682.45,0.25478173]
[1752589941437,0.96404772,683.75,682.45,0.25478173]
[1752589942235,0.96404772,683.76,682.45,0.25478173]
[1752589942433,0.96404772,683.75,682.45,0.25478173]
[1752589943230,0.96404772,683.77,682.45,0.25478173]
[1752589943535,0.96404772,683.76,682.45,0.25478173]
[1752589943730,0.96404772,683.75,682.45,0.25478173]
[1752589944231,2.03689339,683.75,682.45,0.25478173]
[1752589944535,1.07284567,683.74,682.45,0.25478173]
[1752589944830,1.07284567,683.73,682.45,0.25478173]
[1752589945031,1.07284567,683.72,682.45,0.25478173]
[1752589945233,1.07284567,683.71,682.45,0.25478173]
[1752589945433,1.07284567,683.7,682.45,0.25478173]
[1752589945631,1.07284567,683.69,682.45,0.25478173]
[1752589945835,0.96404772,683.77,682.45,0.25478173]
[1752589946033,0.96404772,683.78,682.45,0.25478173]
[1752589946236,0.96404772,683.83,682.45,0.25478173]
[1752589946437,0.96404772,683.82,682.45,0.25478173]
[1752589946936,0.96404772,683.84,682.45,0.25478173]
[1752589947333,0.96404772,683.86,682.45,0.25478173]
[1752589947633,0.96404772,683.85,682.45,0.25478173]
[1752589947833,0.96404772,683.86,682.45,0.25478173]
[1752589948332,0.96404772,683.82,682.45,0.25478173]
[1752589948536,0.96404772,683.87,682.45,0.25478173]
[1752589948734,0.96404772,683.9,682.45,0.25478173]
[1752589949539,0.96404772,683.89,682.45,0.25478173]
[1752589949740,0.96404772,683.91,682.45,0.25478173]
[1752589949939,1.49621135,684.02,682.45,0.25478173]
[1752589950137,1.49621135,684.01,682.45,0.25478173]
[1752589950336,1.49621135,684.0,682.45,0.25478173]
[1752589950536,1.49621135,683.99,682.45,0.25478173]
[1752589950836,1.49621135,683.98,682.45,0.25478173]
[1752589951040,3.21349242,685.02,682.45,0.25478173]
[1752589951041,1.49621135,683.97,682.45,0.25478173]
[1752589951237,1.4964626,683.96,682.45,0.25478173]
[1752589951538,1.4964626,683.95,682.45,0.25478173]
[1752589951741,1.07714042,683.94,682.45,0.25478173]
[1752589951936,1.07714042,683.93,682.45,0.25478173]
[1752589952242,1.07714042,683.92,682.45,0.25478173]
[1752589952440,1.07714042,683.91,682.45,0.25478173]
[1752589952741,1.07714042,683.9,682.45,0.25478173]
[1752589952942,1.07714042,683.89,682.45,0.25478173]
[1752589953241,1.07714042,683.88,682.45,0.25478173]
[1752589953537,1.07714042,683.87,682.45,0.25478173]
[1752589953836,1.07714042,683.86,682.45,0.25478173]
[1752589954041,1.07714042,683.85,682.45,0.25478173]
[1752589954242,1.07714042,683.84,682.45,0.25478173]
[1752589954443,1.07714042,683.83,682.45,0.25478173]
[1752589954643,1.07714042,683.82,682.45,0.25478173]
[1752589954841,1.07714042,683.81,682.45,0.25478173]
[1752589955041,0.96404772,684.44,682.82,0.96887653]
[1752589955241,1.08026571,684.43,682.82,0.96887653]
[1752589955440,1.08026571,684.43,682.64,1.29183537]
[1752589955441,1.50054033,684.42,682.83,0.96887653]
[1752589955638,1.50054033,684.41,682.83,0.96887653]
[1752589955942,1.50054033,684.4,682.83,0.96887653]
[1752589956244,1.50054033,684.39,682.79,0.96887653]
[1752589956443,1.50054033,684.38,682.87,0.96887653]
[1752589956645,0.96404772,684.13,682.47,0.96887653]
[1752589956844,0.96404772,684.13,682.46,0.96887653]
[1752589957044,1.08026571,684.12,682.83,0.96887653]
[1752589957243,1.50054033,684.11,682.81,0.96887653]
[1752589957442,1.50054033,684.1,682.45,1.22365826]
[1752589957643,0.42027462,684.09,682.48,0.96887653]
[1752589957843,0.42027462,684.09,682.49,0.96887653]
[1752589958045,1.08026571,684.09,682.56,0.96887653]
[1752589958345,1.50345495,684.08,682.59,0.96887653]
[1752589958546,1.08237127,684.07,682.62,0.96887653]
[1752589958744,1.08237127,684.06,682.81,0.96887653]
[1752589959048,1.08237127,684.05,682.81,0.96887653]
[1752589959347,1.08237127,684.04,682.83,0.96887653]
[1752589959543,1.08237127,684.03,682.83,0.96887653]
[1752589959747,1.08237127,684.02,682.61,0.96887653]
[1752589959944,1.08237127,684.01,682.61,0.96887653]
[1752589960146,1.08237127,684.0,682.61,0.96887653]
[1752589960348,1.08237127,683.99,682.62,0.96887653]
[1752589960644,1.08237127,683.98,682.63,0.96887653]
[1752589960843,1.08237127,683.97,682.64,0.96887653]
[1752589961148,1.08237127,683.96,682.88,0.96887653]
[1752589961347,1.08237127,683.95,682.9,0.96887653]
[1752589961649,1.08237127,683.94,682.86,0.96887653]
[1752589961847,1.08237127,683.93,682.86,0.96887653]
[1752589962047,1.08237127,683.92,682.85,0.96887653]
[1752589962345,1.08237127,683.91,682.76,0.96887653]
[1752589962547,1.08237127,683.9,682.79,0.96887653]
[1752589962847,1.08237127,683.89,682.8,0.96887653]
[1752589963043,1.08237127,683.88,682.8,0.96887653]
[1752589963248,0.96404772,684.06,682.8,0.96887653]
[1752589963249,1.08237127,683.87,682.8,0.96887653]
[1752589963549,1.08237127,683.86,682.8,0.96887653]
[1752589963744,1.08237127,683.85,682.8,0.96887653]
[1752589963942,1.08237127,683.84,682.8,0.96887653]
[1752589964146,1.08237127,683.83,682.79,0.96887653]
[1752589964448,1.08237127,683.82,682.8,0.96887653]
[1752589964748,1.08237127,683.81,682.85,0.96887653]
[1752589964944,1.08237127,683.8,682.85,0.96887653]
[1752589965145,1.08237127,683.79,682.85,0.96887653]
[1752589965348,1.08237127,683.78,682.86,0.96887653]
[1752589965544,1.08237127,683.77,682.86,0.96887653]
[1752589965748,1.08237127,683.76,682.86,0.96887653]
[1752589965944,0.96404772,684.14,682.86,0.96887653]
[1752589966149,1.08498897,684.13,682.86,0.96887653]
[1752589966445,1.50709716,684.12,682.87,0.96887653]
[1752589966652,1.50709716,684.11,682.87,0.96887653]
[1752589966845,1.50709716,684.1,682.86,0.96887653]
[1752589967056,1.50699819,684.09,682.95,0.96887653]
[1752589967353,1.50699819,684.08,683.11,0.96887653]
[1752589967546,1.50699819,684.07,683.12,0.96887653]
[1752589967847,1.50699819,684.06,683.12,0.96887653]
[1752589968048,1.50699819,684.05,683.12,0.96887653]
[1752589968251,1.50699819,684.04,683.15,0.96887653]
[1752589968447,1.50699819,684.03,683.14,0.96887653]
[1752589968751,1.50699819,684.02,683.14,0.96887653]
[1752589969054,1.50699819,684.01,683.13,0.96887653]
[1752589969253,1.50699819,684.0,683.12,0.96887653]
[1752589969445,1.08491731,683.99,683.12,0.96887653]
[1752589969751,1.08491731,683.98,683.12,0.96887653]
[1752589969948,1.08491731,684.37,683.13,0.96887653]
[1752589970147,1.50691953,684.36,683.13,0.96887653]
[1752589970452,0.96404772,684.26,682.99,0.96887653]
[1752589970651,1.08491731,684.25,682.99,0.96887653]
[1752589970947,1.50691953,684.24,682.99,0.96887653]
[1752589971152,1.50691953,684.23,682.99,0.96887653]
[1752589971351,1.50691953,684.22,682.98,0.96887653]
[1752589971554,1.50691953,684.21,682.98,0.96887653]
[1752589971755,1.50691953,684.21,682.82,1.29183537]
[1752589971756,1.50691953,684.2,683.01,0.96887653]
[1752589971958,1.50691953,684.19,683.01,0.96887653]
[1752589972155,1.50691953,684.18,683.01,0.96887653]
[1752589972351,1.50691953,684.17,683.01,0.96887653]
[1752589972550,1.50691953,684.16,683.01,0.96887653]
[1752589972751,1.50691953,684.15,683.01,0.96887653]
[1752589973055,1.50691953,684.14,683.0,0.96887653]
[1752589973256,1.50691953,684.13,682.99,0.96887653]
[1752589973456,1.50691953,684.12,682.99,0.96887653]
[1752589973651,1.50691953,684.11,682.99,0.96887653]
[1752589973955,1.50691953,684.11,682.45,0.25478173]
[1752589973956,1.08491731,684.1,683.06,0.96887653]
[1752589974149,1.08491731,684.09,683.06,0.96887653]
[1752589974352,1.08491731,684.08,683.05,0.96887653]
[1752589974553,1.08491731,684.07,683.06,0.96887653]
[1752589974752,1.08491731,684.06,683.02,0.96887653]
[1752589974956,1.08491731,684.05,683.02,0.96887653]
[1752589975156,1.08491731,684.04,683.02,0.96887653]
[1752589975451,1.08491731,684.03,683.02,0.96887653]
[1752589975655,0.96404772,684.35,683.02,0.96887653]
[1752589975858,0.96404772,684.39,683.06,0.96887653]
[1752589976057,1.0801486,684.38,683.06,0.96887653]
[1752589976257,1.50206188,684.37,683.05,0.96887653]
[1752589976458,1.50172922,684.36,683.04,0.96887653]
[1752589976759,1.50172922,684.35,683.04,0.96887653]
[1752589976955,1.50160052,684.34,683.04,0.96887653]
[1752589977158,1.50160052,684.33,683.08,0.96887653]
[1752589977360,1.50160052,684.32,683.07,0.96887653]
[1752589977656,1.50160052,684.31,683.07,0.96887653]
[1752589977960,1.50160052,684.3,683.07,0.96887653]
[1752589978156,1.50160052,684.29,683.07,0.96887653]
[1752589978356,1.50160052,684.28,683.06,0.96887653]
[1752589978561,1.07981594,684.27,683.07,0.96887653]
[1752589978761,1.07981594,684.26,683.07,0.96887653]
[1752589978960,1.07981594,684.25,683.07,0.96887653]
[1752589979158,1.07981594,684.24,683.07,0.96887653]
[1752589979355,1.07981594,684.23,683.06,0.96887653]
[1752589979661,0.96404772,684.49,683.06,0.96887653]
[1752589979862,1.07903328,684.48,683.18,0.96887653]
[1752589980055,1.50048851,684.47,683.18,0.96887653]
[1752589980256,1.50048851,684.46,683.18,0.96887653]
[1752589980457,1.50048851,684.45,683.18,0.96887653]
[1752589980661,1.50048851,684.44,683.19,0.96887653]
[1752589980862,1.50048851,684.43,683.19,0.96887653]
[1752589981062,0.42145523,684.42,683.18,0.96887653]
[1752589981260,1.50048851,684.57,683.18,0.96887653]
[1752589981462,1.50048851,684.56,683.14,0.96887653]
[1752589981663,1.50048851,684.55,683.12,0.96887653]
[1752589981864,0.96404772,684.53,683.01,0.96887653]
[1752589982064,0.96404772,684.51,682.99,0.96887653]
[1752589982262,0.96404772,684.51,682.45,0.25478173]
[1752589982263,1.07903328,684.5,683.03,0.96887653]
[1752589982465,1.50048851,684.49,683.03,0.96887653]
[1752589982760,1.50048851,684.48,682.99,0.96887653]
[1752589982962,1.50048851,684.47,682.93,0.96887653]
[1752589983265,1.50048851,684.46,682.92,0.96887653]
[1752589983461,1.50048851,684.45,682.92,0.96887653]
[1752589983766,1.50048851,684.44,682.89,0.96887653]
[1752589984065,0.42135373,684.43,682.89,0.96887653]
[1752589984361,1.07899004,684.42,682.89,0.96887653]
[1752589984562,0.42135373,684.47,682.45,0.25478173]
[1752589984563,1.50034377,684.41,682.84,0.96887653]
[1752589984864,1.5000939,684.4,682.86,0.96887653]
[1752589985060,1.5000939,684.39,682.87,0.96887653]
[1752589985260,1.5000939,684.38,682.86,0.96887653]
[1752589985462,1.5000939,684.37,682.86,0.96887653]
[1752589985665,1.5000939,684.36,682.86,0.96887653]
[1752589985865,1.5000939,684.35,682.86,0.96887653]
[1752589986165,1.5000939,684.34,682.86,0.96887653]
[1752589986359,1.5000939,684.33,682.85,0.96887653]
[1752589986561,1.5000939,684.32,682.85,0.96887653]
[1752589986760,1.5000939,684.31,682.85,0.96887653]
[1752589986962,1.5000939,684.3,682.88,0.96887653]
[1752589987165,1.5000939,684.29,682.88,0.96887653]
[1752589987361,1.5000939,684.28,682.88,0.96887653]
[1752589987563,1.5000939,684.27,682.88,0.96887653]
[1752589987763,1.5000939,684.26,682.8,0.96887653]
[1752589988067,1.5000939,684.25,682.8,0.96887653]
[1752589988267,1.5000939,684.24,682.8,0.96887653]
[1752589988566,1.5000939,684.23,682.8,0.96887653]
[1752589988768,1.5000939,684.22,682.8,0.96887653]
[1752589988967,1.5000939,684.21,682.82,0.96887653]
[1752589989263,1.5000939,684.2,682.83,0.96887653]
[1752589989468,1.5000939,684.19,682.83,0.96887653]
[1752589989668,1.5000939,684.18,682.83,0.96887653]
[1752589989866,1.5000939,684.17,682.82,0.96887653]
[1752589990066,1.5000939,684.16,682.82,0.96887653]
[1752589990266,1.5000939,684.15,682.83,0.96887653]
[1752589990468,1.5000939,684.14,682.78,0.96887653]
[1752589990672,1.5000939,684.13,682.78,0.96887653]
[1752589990873,1.5000939,684.12,682.78,0.96887653]
[1752589991071,1.5000939,684.11,682.78,0.96887653]
[1752589991270,1.5000939,684.1,682.78,0.96887653]
[1752589991475,1.5000939,684.09,682.74,0.96887653]
[1752589991775,1.5000939,684.08,682.73,0.96887653]
[1752589991971,1.5000939,684.07,682.73,0.96887653]
[1752589992177,1.5000939,684.06,682.67,0.96887653]
[1752589992375,1.5000939,684.05,682.67,0.96887653]
[1752589992577,0.96404772,684.18,682.67,0.96887653]
[1752589992578,1.5000939,684.04,682.67,0.96887653]
[1752589992773,1.5000939,684.03,682.67,0.96887653]
[1752589992976,0.96404772,684.18,682.67,0.96887653]
[1752589993178,2.04170267,684.17,682.68,0.96887653]
[1752589993377,1.49863699,684.16,682.68,0.96887653]
[1752589993576,1.49863699,684.15,682.68,0.96887653]
[1752589993774,1.49863699,684.14,682.68,0.96887653]
[1752589993978,1.49863699,684.13,682.68,0.96887653]
[1752589994179,1.49863699,684.12,682.68,0.96887653]
[1752589994376,1.49863699,684.11,682.68,0.96887653]
[1752589994575,1.49863699,684.1,682.68,0.96887653]
[1752589994875,1.49863699,684.09,682.68,0.96887653]
[1752589995075,1.49863699,684.08,682.68,0.96887653]
[1752589995279,1.49863699,684.07,682.69,0.96887653]
[1752589995477,1.49863699,684.06,682.68,0.96887653]
[1752589995681,1.49863699,684.05,682.66,0.96887653]
[1752589995981,1.49863699,684.04,682.66,0.96887653]
[1752589996178,1.49863699,684.03,682.67,0.96887653]
[1752589996379,1.49863699,684.02,682.67,0.96887653]
[1752589996678,1.49863699,684.01,682.65,0.96887653]
[1752589996882,1.49863699,684.0,682.62,0.96887653]
[1752589997079,1.49863699,683.99,682.68,0.96887653]
[1752589997278,1.49863699,683.98,682.68,0.96887653]
[1752589997483,1.49863699,683.97,682.63,0.96887653]
[1752589997679,1.49863699,683.96,682.63,0.96887653]
[1752589997983,1.49863699,683.95,682.63,0.96887653]
[1752589998180,1.49863699,683.94,682.65,0.97432972]
[1752589998380,1.49863699,683.93,682.65,0.97432972]
[1752589998586,1.49863699,683.92,682.65,0.97432972]
[1752589998880,1.49863699,683.91,682.65,0.97432972]
[1752589999085,1.49863699,683.9,682.65,0.97432972]
[1752589999287,1.49863699,683.89,682.66,0.97432972]
[1752589999585,1.49863699,683.88,682.66,0.97432972]
[1752589999787,1.49863699,683.87,682.74,0.97432972]
[1752589999986,1.49930815,683.86,682.75,0.97432972]
[1752590000187,1.07765495,683.85,682.75,0.97432972]
[1752590000388,1.07765495,683.84,682.76,0.97432972]
[1752590000587,1.07765495,683.84,682.61,1.29183537]
[1752590000588,1.07765495,683.83,682.75,0.97432972]
[1752590000788,0.96809496,684.1,682.75,0.97432972]
[1752590000789,1.07765495,683.82,682.75,0.97432972]
[1752590000984,1.07765495,683.81,682.75,0.97432972]
[1752590001185,1.07765495,683.8,682.77,0.97432972]
[1752590001484,1.07765495,683.79,682.77,0.97432972]
[1752590001684,0.96809496,684.1,682.77,0.97432972]
[1752590001685,1.07765495,683.78,682.77,0.97432972]
[1752590001988,1.07765495,683.77,682.77,0.97432972]
[1752590002183,1.07765495,683.76,682.79,0.97432972]
[1752590002388,1.07765495,683.75,682.79,0.97432972]
[1752590002584,1.07765495,683.74,682.79,0.97432972]
[1752590002789,1.07765495,683.73,682.79,0.97432972]
[1752590002986,0.96809496,684.08,682.79,0.97432972]
[1752590003288,1.28539696,684.25,682.45,0.25478173]
[1752590003289,0.96809496,684.03,682.83,0.97432972]
[1752590004185,0.96809496,684.02,682.84,0.97432972]
[1752590004388,0.96809496,684.01,682.86,0.97432972]
[1752590005193,0.96809496,684.01,682.87,0.97432972]
[1752590005796,0.96809496,684.0,682.87,0.97432972]
[1752590005996,0.96809496,683.98,682.84,0.97432972]
[1752590006292,0.96809496,683.96,682.87,0.97432972]
[1752590006492,0.96809496,683.97,682.87,0.97432972]
[1752590006691,0.96809496,684.04,682.97,0.97432972]
[1752590007294,0.96809496,684.02,683.0,0.97432972]
[1752590007998,0.96809496,684.03,683.0,0.97432972]
[1752590008194,0.96809496,684.02,683.0,0.97432972]
[1752590008495,0.96809496,684.01,683.02,0.97432972]
[1752590008698,0.96809496,684.02,683.02,0.97432972]
[1752590008894,0.96809496,684.01,683.02,0.97432972]
[1752590009296,2.0508262,684.0,683.04,0.97432972]
[1752590009594,1.50568717,683.99,683.04,0.97432972]
[1752590009794,1.50568717,683.98,683.04,0.97432972]
[1752590009995,1.50568717,683.97,683.04,0.97432972]
[1752590010196,1.50568717,683.96,683.05,0.97432972]
[1752590010399,1.50568717,683.95,683.05,0.97432972]
[1752590010597,1.50568717,683.94,683.05,0.97432972]
[1752590010798,1.50568717,683.93,683.05,0.97432972]
[1752590011000,1.50568717,683.92,683.05,0.97432972]
[1752590011200,1.50568717,683.91,683.06,0.97432972]
[1752590011401,1.50568717,683.9,683.06,0.97432972]
[1752590011601,1.50568717,683.89,683.06,0.97432972]
[1752590011899,1.50568717,683.88,683.06,0.97432972]
[1752590012098,1.50568717,683.87,683.06,0.97432972]
[1752590012396,1.50568717,683.86,683.07,0.97432972]